[Event "Late-Titled-Tuesday-Blitz-April-16-2024"]
[Site "Chess.com"]
[Date "2024.04.16"]
[Round "2"]
[White "SCIM"]
[Black "kleinebeer98"]
[Result "0-1"]
[WhiteElo "2578"]
[BlackElo "2876"]
[TimeControl "180+1"]
[EndTime "14:17:59 PDT"]
[Termination "kleinebeer98 won on time"]

1. e4 {[%clk 0:03:00.9]} 1... c5 {[%clk 0:02:58.1]} 2. Nf3 {[%clk 0:03:00.3]}
2... Nc6 {[%clk 0:02:58.8]} 3. d4 {[%clk 0:02:58.9]} 3... cxd4 {[%clk
0:02:59.7]} 4. Nxd4 {[%clk 0:02:59]} 4... Nf6 {[%clk 0:02:59.5]} 5. Nc3 {[%clk
0:02:58.5]} 5... h5 {[%clk 0:02:59.9]} 6. Bc4 {[%clk 0:02:47.2]} 6... e6 {[%clk
0:02:58]} 7. O-O {[%clk 0:02:43]} 7... Qc7 {[%clk 0:02:50.1]} 8. Nxc6 {[%clk
0:02:40.9]} 8... dxc6 {[%clk 0:02:39.6]} 9. Qe2 {[%clk 0:02:35.2]} 9... Ng4
{[%clk 0:02:31.7]} 10. f4 {[%clk 0:02:33.1]} 10... Bc5+ {[%clk 0:02:09.6]} 11.
Kh1 {[%clk 0:02:31.4]} 11... a5 {[%clk 0:01:51.2]} 12. a4 {[%clk 0:02:23.2]}
12... Qe7 {[%clk 0:01:35.7]} 13. Qe1 {[%clk 0:01:54.8]} 13... e5 {[%clk
0:01:27.6]} 14. f5 {[%clk 0:01:39.7]} 14... Bd7 {[%clk 0:01:17.1]} 15. Nd1
{[%clk 0:01:32.8]} 15... O-O-O {[%clk 0:00:36.5]} 16. Ne3 {[%clk 0:01:18.6]}
16... Bb6 {[%clk 0:00:31.3]} 17. Bd3 {[%clk 0:01:06]} 17... Qc5 {[%clk
0:00:19.7]} 18. Nc4 {[%clk 0:00:45.9]} 18... Ba7 {[%clk 0:00:20]} 19. Bg5 {[%clk
0:00:25.5]} 19... f6 {[%clk 0:00:18]} 20. Bh4 {[%clk 0:00:24.9]} 20... Be8
{[%clk 0:00:15.1]} 21. Qxa5 {[%clk 0:00:21.9]} 21... Qxa5 {[%clk 0:00:08.1]} 22.
Nxa5 {[%clk 0:00:22.8]} 22... Ne3 {[%clk 0:00:06]} 23. Rfe1 {[%clk 0:00:18.2]}
23... Bf7 {[%clk 0:00:06.7]} 24. Bf2 {[%clk 0:00:10.3]} 24... Nxc2 {[%clk
0:00:07]} 25. Bxc2 {[%clk 0:00:06.3]} 25... Bxf2 {[%clk 0:00:06.7]} 26. Rf1
{[%clk 0:00:06.5]} 26... Rd2 {[%clk 0:00:05.6]} 27. Bb3 {[%clk 0:00:05.1]} 27...
Bxb3 {[%clk 0:00:06.1]} 28. Nxb3 {[%clk 0:00:05.3]} 28... Rxb2 {[%clk 0:00:07]}
29. Nc1 {[%clk 0:00:04.1]} 29... Rd8 {[%clk 0:00:06.5]} 30. a5 {[%clk
0:00:03.8]} 30... Rdd2 {[%clk 0:00:05.4]} 31. a6 {[%clk 0:00:04]} 31... bxa6
{[%clk 0:00:05.5]} 32. Rxa6 {[%clk 0:00:04.3]} 32... Kb7 {[%clk 0:00:05.5]} 33.
Ra3 {[%clk 0:00:04.2]} 33... Bb6 {[%clk 0:00:04.8]} 34. Nd3 {[%clk 0:00:03.5]}
34... Rbc2 {[%clk 0:00:04.1]} 35. Rb3 {[%clk 0:00:03.3]} 35... Rxg2 {[%clk
0:00:03.4]} 36. Nc5+ {[%clk 0:00:03.5]} 36... Kc7 {[%clk 0:00:03.3]} 37. Ne6+
{[%clk 0:00:03]} 37... Kb7 {[%clk 0:00:03.7]} 0-1

[Event "Late-Titled-Tuesday-Blitz-April-16-2024"]
[Site "Chess.com"]
[Date "2024.04.16"]
[Round "2"]
[White "SpongeBob_03"]
[Black "Tugrik1969"]
[Result "0-1"]
[WhiteElo "2272"]
[BlackElo "2504"]
[TimeControl "180+1"]
[EndTime "14:18:01 PDT"]
[Termination "Tugrik1969 won by resignation"]

1. e4 {[%clk 0:03:00.9]} 1... c5 {[%clk 0:02:59.9]} 2. Nf3 {[%clk 0:03:00.4]}
2... d6 {[%clk 0:03:00.1]} 3. Bb5+ {[%clk 0:02:55.5]} 3... Bd7 {[%clk
0:02:58.8]} 4. Bxd7+ {[%clk 0:02:53.4]} 4... Nxd7 {[%clk 0:02:59.7]} 5. O-O
{[%clk 0:02:51.7]} 5... Ngf6 {[%clk 0:02:59.9]} 6. Qe2 {[%clk 0:02:50.5]} 6...
e6 {[%clk 0:02:59.3]} 7. c3 {[%clk 0:02:48.8]} 7... Be7 {[%clk 0:02:59.7]} 8. d4
{[%clk 0:02:48]} 8... O-O {[%clk 0:03:00.1]} 9. Rd1 {[%clk 0:02:42.6]} 9... cxd4
{[%clk 0:02:25.8]} 10. cxd4 {[%clk 0:02:40.6]} 10... d5 {[%clk 0:02:26.7]} 11.
e5 {[%clk 0:02:38.4]} 11... Ne4 {[%clk 0:02:27]} 12. Nbd2 {[%clk 0:02:29.3]}
12... Nxd2 {[%clk 0:02:25.8]} 13. Bxd2 {[%clk 0:02:30.2]} 13... Nb8 {[%clk
0:02:23.8]} 14. b4 {[%clk 0:02:27.8]} 14... Nc6 {[%clk 0:02:20.5]} 15. a3 {[%clk
0:02:27.9]} 15... a5 {[%clk 0:02:01.4]} 16. b5 {[%clk 0:02:26.2]} 16... Na7
{[%clk 0:02:02]} 17. a4 {[%clk 0:02:26.4]} 17... Nc8 {[%clk 0:02:02.3]} 18. Qe1
{[%clk 0:02:17.6]} 18... b6 {[%clk 0:01:28.2]} 19. Rdc1 {[%clk 0:01:57.9]} 19...
Na7 {[%clk 0:01:26]} 20. Qe3 {[%clk 0:01:47.4]} 20... Qd7 {[%clk 0:01:18.5]} 21.
Qd3 {[%clk 0:01:46.4]} 21... Rfc8 {[%clk 0:01:16]} 22. h4 {[%clk 0:01:32.8]}
22... Rxc1+ {[%clk 0:01:10.7]} 23. Rxc1 {[%clk 0:01:31.2]} 23... Rc8 {[%clk
0:01:11.1]} 24. h5 {[%clk 0:01:28.3]} 24... h6 {[%clk 0:01:11.4]} 25. g4 {[%clk
0:01:23.2]} 25... Rxc1+ {[%clk 0:01:09.9]} 26. Bxc1 {[%clk 0:01:24.1]} 26... Qc8
{[%clk 0:01:08.2]} 27. Qd2 {[%clk 0:01:04]} 27... Qc4 {[%clk 0:00:59.4]} 28. g5
{[%clk 0:00:43.7]} 28... hxg5 {[%clk 0:00:56.5]} 29. Nxg5 {[%clk 0:00:44.6]}
29... Qxa4 {[%clk 0:00:56.7]} 30. Qf4 {[%clk 0:00:28.7]} 30... Bxg5 {[%clk
0:00:51.9]} 31. Qxg5 {[%clk 0:00:27.6]} 31... Qc2 {[%clk 0:00:36.8]} 32. Kh2
{[%clk 0:00:09.7]} 32... Qxf2+ {[%clk 0:00:29.7]} 33. Kh3 {[%clk 0:00:09.8]}
33... Qf5+ {[%clk 0:00:28.1]} 34. Qxf5 {[%clk 0:00:10.2]} 34... exf5 {[%clk
0:00:29]} 35. Kg3 {[%clk 0:00:10.6]} 35... Nxb5 {[%clk 0:00:29.2]} 36. Bb2
{[%clk 0:00:11.1]} 36... g5 {[%clk 0:00:26]} 37. hxg6 {[%clk 0:00:07.5]} 37...
fxg6 {[%clk 0:00:26.2]} 38. Kf4 {[%clk 0:00:08.4]} 38... Kf7 {[%clk 0:00:26.3]}
39. Kg5 {[%clk 0:00:08.6]} 39... Ke6 {[%clk 0:00:25]} 40. Kxg6 {[%clk
0:00:08.6]} 40... f4 {[%clk 0:00:24.5]} 41. Bc1 {[%clk 0:00:08.3]} 41... f3
{[%clk 0:00:24.8]} 42. Be3 {[%clk 0:00:08.5]} 42... a4 {[%clk 0:00:25.4]} 43.
Kg5 {[%clk 0:00:08.9]} 43... a3 {[%clk 0:00:25.9]} 44. Kg4 {[%clk 0:00:08.6]}
44... a2 {[%clk 0:00:26.2]} 45. Kxf3 {[%clk 0:00:09.5]} 45... a1=Q {[%clk
0:00:26.2]} 0-1

[Event "Late-Titled-Tuesday-Blitz-April-16-2024"]
[Site "Chess.com"]
[Date "2024.04.16"]
[Round "2"]
[White "N_Mullodzhanov"]
[Black "Sacbutt"]
[Result "1-0"]
[WhiteElo "2529"]
[BlackElo "2331"]
[TimeControl "180+1"]
[EndTime "14:18:02 PDT"]
[Termination "N_Mullodzhanov won by checkmate"]

1. e4 {[%clk 0:03:00.9]} 1... b6 {[%clk 0:02:48.3]} 2. d4 {[%clk 0:03:00.1]}
2... Bb7 {[%clk 0:02:48.6]} 3. Bd3 {[%clk 0:03:00.2]} 3... e6 {[%clk 0:02:49.2]}
4. Nf3 {[%clk 0:02:59.6]} 4... Nf6 {[%clk 0:02:48.7]} 5. Qe2 {[%clk 0:02:58.6]}
5... c5 {[%clk 0:02:47.2]} 6. c3 {[%clk 0:02:58.3]} 6... Nc6 {[%clk 0:02:46.2]}
7. O-O {[%clk 0:02:56.9]} 7... d6 {[%clk 0:02:45.4]} 8. Na3 {[%clk 0:02:49.5]}
8... Be7 {[%clk 0:02:44.6]} 9. h3 {[%clk 0:02:48.4]} 9... O-O {[%clk 0:02:44.7]}
10. Nc2 {[%clk 0:02:44.4]} 10... a6 {[%clk 0:02:43.3]} 11. a4 {[%clk 0:02:43.7]}
11... Qc7 {[%clk 0:02:40.1]} 12. Bf4 {[%clk 0:02:38.8]} 12... Na5 {[%clk
0:02:30.4]} 13. Nd2 {[%clk 0:02:25.6]} 13... Rac8 {[%clk 0:02:26.2]} 14. b4
{[%clk 0:02:24.5]} 14... c4 {[%clk 0:02:21]} 15. bxa5 {[%clk 0:02:23.5]} 15...
cxd3 {[%clk 0:02:21.2]} 16. Qxd3 {[%clk 0:02:23]} 16... Qxc3 {[%clk 0:02:21]}
17. Qxc3 {[%clk 0:02:06.6]} 17... Rxc3 {[%clk 0:02:21.9]} 18. Ne3 {[%clk
0:02:02.3]} 18... bxa5 {[%clk 0:02:13.2]} 19. f3 {[%clk 0:02:00.2]} 19... e5
{[%clk 0:02:06]} 20. Bg5 {[%clk 0:01:59.4]} 20... exd4 {[%clk 0:02:02.6]} 21.
Nf5 {[%clk 0:01:57.7]} 21... Re8 {[%clk 0:01:48.9]} 22. Rab1 {[%clk 0:01:51.4]}
22... Bc6 {[%clk 0:01:45.5]} 23. Nxd4 {[%clk 0:01:48.3]} 23... Bxa4 {[%clk
0:01:40.9]} 24. Ra1 {[%clk 0:01:46]} 24... Bb5 {[%clk 0:01:34.9]} 25. Rfb1
{[%clk 0:01:29.8]} 25... h6 {[%clk 0:01:13.7]} 26. Bxf6 {[%clk 0:01:12.1]} 26...
Bxf6 {[%clk 0:01:14.6]} 27. Nxb5 {[%clk 0:01:12]} 27... axb5 {[%clk 0:01:13.7]}
28. Rxa5 {[%clk 0:01:08.7]} 28... Rd3 {[%clk 0:01:10.2]} 29. Nf1 {[%clk
0:01:05.5]} 29... d5 {[%clk 0:01:01.3]} 30. exd5 {[%clk 0:01:05.5]} 30... Rxd5
{[%clk 0:01:00.3]} 31. Raxb5 {[%clk 0:01:05.7]} 31... Rxb5 {[%clk 0:00:59.1]}
32. Rxb5 {[%clk 0:01:06.6]} 32... Bd4+ {[%clk 0:00:56.5]} 33. Kh2 {[%clk
0:01:05]} 33... Re1 {[%clk 0:00:55.4]} 34. Rd5 {[%clk 0:00:45.7]} 34... Rd1
{[%clk 0:00:31]} 35. Ne3 {[%clk 0:00:19.2]} 35... Rd3 {[%clk 0:00:27.6]} 36. f4
{[%clk 0:00:19.3]} 36... Rxe3 {[%clk 0:00:23.4]} 37. Rd8+ {[%clk 0:00:18.8]}
37... Kh7 {[%clk 0:00:23]} 38. Rxd4 {[%clk 0:00:19.7]} 38... Kg6 {[%clk
0:00:23]} 39. g4 {[%clk 0:00:17.6]} 39... f6 {[%clk 0:00:18.4]} 40. h4 {[%clk
0:00:18]} 40... h5 {[%clk 0:00:17.7]} 41. f5+ {[%clk 0:00:15.5]} 41... Kh6
{[%clk 0:00:17.3]} 42. g5+ {[%clk 0:00:15.9]} 42... fxg5 {[%clk 0:00:17.1]} 43.
Rd6+ {[%clk 0:00:16]} 43... Kh7 {[%clk 0:00:16.7]} 44. hxg5 {[%clk 0:00:16.4]}
44... Rf3 {[%clk 0:00:15.3]} 45. Rd5 {[%clk 0:00:14.5]} 45... Kg8 {[%clk
0:00:13.8]} 46. Kg2 {[%clk 0:00:14.7]} 46... Rf4 {[%clk 0:00:13]} 47. g6 {[%clk
0:00:12]} 47... h4 {[%clk 0:00:11.7]} 48. Rd8# {[%clk 0:00:11.6]} 1-0

[Event "Late-Titled-Tuesday-Blitz-April-16-2024"]
[Site "Chess.com"]
[Date "2024.04.16"]
[Round "2"]
[White "th3d4rkness"]
[Black "Licancabur"]
[Result "0-1"]
[WhiteElo "2134"]
[BlackElo "2445"]
[TimeControl "180+1"]
[EndTime "14:18:03 PDT"]
[Termination "Licancabur won by resignation"]

1. e4 {[%clk 0:03:00.9]} 1... Nf6 {[%clk 0:02:57.9]} 2. e5 {[%clk 0:02:59.8]}
2... Nd5 {[%clk 0:02:58.4]} 3. c4 {[%clk 0:02:58.3]} 3... Nb6 {[%clk 0:02:57.9]}
4. d4 {[%clk 0:02:58.7]} 4... d6 {[%clk 0:02:58.2]} 5. exd6 {[%clk 0:02:58.1]}
5... cxd6 {[%clk 0:02:58]} 6. Nc3 {[%clk 0:02:56.6]} 6... g6 {[%clk 0:02:57.7]}
7. c5 {[%clk 0:02:56.9]} 7... dxc5 {[%clk 0:02:56.4]} 8. dxc5 {[%clk 0:02:56.8]}
8... Qxd1+ {[%clk 0:02:55]} 9. Kxd1 {[%clk 0:02:57.4]} 9... N6d7 {[%clk
0:02:46.9]} 10. Nd5 {[%clk 0:02:57.7]} 10... Kd8 {[%clk 0:02:34.2]} 11. Bf4
{[%clk 0:02:56.5]} 11... g5 {[%clk 0:01:50.3]} 12. Bc7+ {[%clk 0:02:53.5]} 12...
Ke8 {[%clk 0:01:49.7]} 13. Bg3 {[%clk 0:02:53.6]} 13... Kd8 {[%clk 0:01:27.1]}
14. Nc7 {[%clk 0:02:48.8]} 14... f5 {[%clk 0:01:25.8]} 15. Ne6+ {[%clk
0:02:42.7]} 15... Ke8 {[%clk 0:01:25.6]} 16. Nxg5 {[%clk 0:02:39.3]} 16... Nxc5
{[%clk 0:01:11.1]} 17. Rc1 {[%clk 0:02:38.2]} 17... Nbd7 {[%clk 0:00:48.4]} 18.
b4 {[%clk 0:02:29.6]} 18... Bh6 {[%clk 0:00:42.9]} 19. bxc5 {[%clk 0:02:18.1]}
19... Bxg5 {[%clk 0:00:42.3]} 20. f4 {[%clk 0:02:17.1]} 20... Bf6 {[%clk
0:00:40.7]} 21. Nf3 {[%clk 0:02:09.7]} 21... Nf8 {[%clk 0:00:33.4]} 22. Bb5+
{[%clk 0:02:01.3]} 22... Bd7 {[%clk 0:00:33.7]} 23. Bxd7+ {[%clk 0:01:59.4]}
23... Nxd7 {[%clk 0:00:33.8]} 24. Ne5 {[%clk 0:01:48.7]} 24... Bxe5 {[%clk
0:00:32.7]} 25. fxe5 {[%clk 0:01:48.3]} 25... e6 {[%clk 0:00:33]} 26. Bf4 {[%clk
0:01:41.1]} 26... Rc8 {[%clk 0:00:32.4]} 27. Ke2 {[%clk 0:01:30.5]} 27... Rg8
{[%clk 0:00:31.7]} 28. g3 {[%clk 0:01:29.8]} 28... Rxc5 {[%clk 0:00:31.1]} 29.
Rxc5 {[%clk 0:01:26.4]} 29... Nxc5 {[%clk 0:00:31.2]} 30. Be3 {[%clk 0:01:22.9]}
30... Nd7 {[%clk 0:00:29.9]} 31. Rc1 {[%clk 0:01:14.4]} 31... Kd8 {[%clk
0:00:25.3]} 32. Bxa7 {[%clk 0:01:10.2]} 32... Rg4 {[%clk 0:00:23.7]} 33. Be3
{[%clk 0:00:52.7]} 33... Re4 {[%clk 0:00:23.2]} 34. Kf3 {[%clk 0:00:48.7]} 34...
Nxe5+ {[%clk 0:00:20.9]} 35. Ke2 {[%clk 0:00:46.8]} 35... Ng4 {[%clk 0:00:20.3]}
36. Rd1+ {[%clk 0:00:45.7]} 36... Ke7 {[%clk 0:00:19.2]} 37. Rd3 {[%clk
0:00:46.2]} 37... e5 {[%clk 0:00:18.8]} 38. h3 {[%clk 0:00:45.2]} 38... Rxe3+
{[%clk 0:00:18.5]} 39. Rxe3 {[%clk 0:00:45.8]} 39... Nxe3 {[%clk 0:00:19.1]} 40.
Kxe3 {[%clk 0:00:46.6]} 40... Kd6 {[%clk 0:00:19.5]} 41. g4 {[%clk 0:00:42.9]}
41... fxg4 {[%clk 0:00:19.1]} 42. hxg4 {[%clk 0:00:43.1]} 42... Kd5 {[%clk
0:00:18.1]} 43. g5 {[%clk 0:00:43.5]} 43... e4 {[%clk 0:00:18.2]} 44. a3 {[%clk
0:00:40.6]} 44... b5 {[%clk 0:00:17.8]} 45. Ke2 {[%clk 0:00:37.5]} 45... Kd4
{[%clk 0:00:17.3]} 46. Kd2 {[%clk 0:00:37.8]} 46... e3+ {[%clk 0:00:17.1]} 47.
Ke2 {[%clk 0:00:38.1]} 47... Ke4 {[%clk 0:00:17.7]} 48. Ke1 {[%clk 0:00:37.8]}
48... Kf3 {[%clk 0:00:16.4]} 49. Kf1 {[%clk 0:00:38]} 49... e2+ {[%clk
0:00:15.1]} 50. Ke1 {[%clk 0:00:38.4]} 50... Ke3 {[%clk 0:00:14.2]} 51. g6
{[%clk 0:00:36.9]} 51... hxg6 {[%clk 0:00:13.9]} 52. a4 {[%clk 0:00:36.8]} 52...
g5 {[%clk 0:00:11.4]} 53. axb5 {[%clk 0:00:33.4]} 53... g4 {[%clk 0:00:12]} 54.
b6 {[%clk 0:00:34]} 54... g3 {[%clk 0:00:12.7]} 0-1

[Event "Late-Titled-Tuesday-Blitz-April-16-2024"]
[Site "Chess.com"]
[Date "2024.04.16"]
[Round "2"]
[White "CarlosjPineror"]
[Black "Andrii_Prydun"]
[Result "1/2-1/2"]
[WhiteElo "2708"]
[BlackElo "2358"]
[TimeControl "180+1"]
[EndTime "14:18:05 PDT"]
[Termination "Game drawn by repetition"]

1. e4 {[%clk 0:03:00.9]} 1... d5 {[%clk 0:02:54.9]} 2. exd5 {[%clk 0:03:00.4]}
2... Qxd5 {[%clk 0:02:55.8]} 3. Nc3 {[%clk 0:03:00.6]} 3... Qf5 {[%clk
0:02:56.3]} 4. d4 {[%clk 0:02:51.7]} 4... Nf6 {[%clk 0:02:56.2]} 5. Nf3 {[%clk
0:02:52]} 5... g6 {[%clk 0:02:56.1]} 6. Bd3 {[%clk 0:02:49.7]} 6... Qd7 {[%clk
0:02:55.7]} 7. Ne5 {[%clk 0:02:47.5]} 7... Qd6 {[%clk 0:02:54.7]} 8. Nb5 {[%clk
0:02:36.8]} 8... Qd8 {[%clk 0:02:53.4]} 9. O-O {[%clk 0:02:20.5]} 9... Bg7
{[%clk 0:02:50.2]} 10. Bf4 {[%clk 0:02:15.6]} 10... c6 {[%clk 0:02:42.1]} 11.
Nc7+ {[%clk 0:01:43.5]} 11... Qxc7 {[%clk 0:02:40.5]} 12. Nxg6 {[%clk
0:01:44.2]} 12... Qb6 {[%clk 0:02:38.7]} 13. Nxh8 {[%clk 0:01:44.5]} 13... Bxh8
{[%clk 0:02:39.1]} 14. Be5 {[%clk 0:01:38.5]} 14... Nbd7 {[%clk 0:02:38.3]} 15.
Re1 {[%clk 0:01:33.7]} 15... Qxb2 {[%clk 0:02:35.9]} 16. Rb1 {[%clk 0:01:31]}
16... Qxa2 {[%clk 0:02:34.8]} 17. Qf3 {[%clk 0:01:31.7]} 17... Nxe5 {[%clk
0:02:26]} 18. dxe5 {[%clk 0:01:30.9]} 18... Ng4 {[%clk 0:02:24.9]} 19. e6 {[%clk
0:01:13.7]} 19... Bxe6 {[%clk 0:02:22.4]} 20. Rxb7 {[%clk 0:01:07.7]} 20... Bd4
{[%clk 0:01:46]} 21. Qxc6+ {[%clk 0:01:02.4]} 21... Kf8 {[%clk 0:01:45.9]} 22.
Rf1 {[%clk 0:00:50.5]} 22... Nxf2 {[%clk 0:01:39.5]} 23. Rb4 {[%clk 0:00:44.6]}
23... Be3 {[%clk 0:01:29.3]} 24. Qxa8+ {[%clk 0:00:37.8]} 24... Kg7 {[%clk
0:01:29]} 25. Qf3 {[%clk 0:00:35.3]} 25... Nxd3+ {[%clk 0:01:27.4]} 26. Qxe3
{[%clk 0:00:31.5]} 26... Nxb4 {[%clk 0:01:27.9]} 27. Qd4+ {[%clk 0:00:32.1]}
27... Kf8 {[%clk 0:01:23.7]} 28. Qxb4 {[%clk 0:00:31.8]} 28... Qxc2 {[%clk
0:01:21.7]} 29. Qd4 {[%clk 0:00:28.4]} 29... f6 {[%clk 0:01:15.4]} 30. Qxa7
{[%clk 0:00:27.8]} 30... Bd5 {[%clk 0:01:10.4]} 31. Qf2 {[%clk 0:00:23.6]} 31...
Qg6 {[%clk 0:01:06.4]} 32. Re1 {[%clk 0:00:22]} 32... h5 {[%clk 0:01:01.7]} 33.
Qd2 {[%clk 0:00:21.9]} 33... Be4 {[%clk 0:00:48.4]} 34. Re2 {[%clk 0:00:20.2]}
34... h4 {[%clk 0:00:46.9]} 35. Qf4 {[%clk 0:00:19.7]} 35... f5 {[%clk 0:00:41]}
36. Qxh4 {[%clk 0:00:19.2]} 36... Qb6+ {[%clk 0:00:40.2]} 37. Qf2 {[%clk
0:00:17.2]} 37... Qb1+ {[%clk 0:00:35.5]} 38. Re1 {[%clk 0:00:17.6]} 38... Qd3
{[%clk 0:00:35.6]} 39. Qe3 {[%clk 0:00:17.3]} 39... Qd5 {[%clk 0:00:34.7]} 40.
g4 {[%clk 0:00:15.9]} 40... e6 {[%clk 0:00:32.7]} 41. gxf5 {[%clk 0:00:16]}
41... exf5 {[%clk 0:00:31.1]} 42. Kf2 {[%clk 0:00:13.1]} 42... Qd6 {[%clk
0:00:25.6]} 43. Qg3 {[%clk 0:00:10]} 43... Qd4+ {[%clk 0:00:21.7]} 44. Qe3
{[%clk 0:00:09]} 44... Qd6 {[%clk 0:00:20.9]} 45. Qg3 {[%clk 0:00:04.8]} 45...
Qd4+ {[%clk 0:00:21]} 46. Qe3 {[%clk 0:00:03.8]} 46... Qd6 {[%clk 0:00:20.8]}
1/2-1/2

[Event "Late-Titled-Tuesday-Blitz-April-16-2024"]
[Site "Chess.com"]
[Date "2024.04.16"]
[Round "2"]
[White "HipsterChess22"]
[Black "noblerone"]
[Result "0-1"]
[WhiteElo "2246"]
[BlackElo "2498"]
[TimeControl "180+1"]
[EndTime "14:18:05 PDT"]
[Termination "noblerone won on time"]

1. d4 {[%clk 0:03:00]} 1... d5 {[%clk 0:02:57.5]} 2. Nc3 {[%clk 0:02:59.8]} 2...
Nf6 {[%clk 0:02:51.9]} 3. Bf4 {[%clk 0:02:59.2]} 3... c5 {[%clk 0:02:51.5]} 4.
e3 {[%clk 0:02:56.7]} 4... cxd4 {[%clk 0:02:45.8]} 5. exd4 {[%clk 0:02:56.3]}
5... a6 {[%clk 0:02:46]} 6. Nf3 {[%clk 0:02:54.8]} 6... Bg4 {[%clk 0:02:37.7]}
7. Be2 {[%clk 0:02:44.9]} 7... Nc6 {[%clk 0:02:34.9]} 8. O-O {[%clk 0:02:41.2]}
8... e6 {[%clk 0:02:35]} 9. Ne5 {[%clk 0:02:35.4]} 9... Bxe2 {[%clk 0:02:34.2]}
10. Nxe2 {[%clk 0:02:33.6]} 10... Rc8 {[%clk 0:02:26.4]} 11. c3 {[%clk
0:02:27.3]} 11... Be7 {[%clk 0:02:25]} 12. Ng3 {[%clk 0:02:24.5]} 12... O-O
{[%clk 0:02:19.4]} 13. Re1 {[%clk 0:02:20.9]} 13... b5 {[%clk 0:02:17.6]} 14. a3
{[%clk 0:02:20.4]} 14... a5 {[%clk 0:02:17.6]} 15. Nh5 {[%clk 0:02:12.6]} 15...
b4 {[%clk 0:01:10.6]} 16. axb4 {[%clk 0:02:10.8]} 16... axb4 {[%clk 0:01:10.5]}
17. Nxf6+ {[%clk 0:02:06.7]} 17... Bxf6 {[%clk 0:01:09.3]} 18. Re3 {[%clk
0:01:34.8]} 18... bxc3 {[%clk 0:01:06.6]} 19. bxc3 {[%clk 0:01:35.7]} 19... g6
{[%clk 0:00:35.2]} 20. Bh6 {[%clk 0:01:25.3]} 20... Re8 {[%clk 0:00:35]} 21. f4
{[%clk 0:01:19.3]} 21... Ne7 {[%clk 0:00:31.7]} 22. g4 {[%clk 0:01:08]} 22...
Bg7 {[%clk 0:00:27.7]} 23. Bxg7 {[%clk 0:01:04]} 23... Kxg7 {[%clk 0:00:28]} 24.
Rh3 {[%clk 0:01:01.1]} 24... f6 {[%clk 0:00:24.9]} 25. Nf3 {[%clk 0:00:44.5]}
25... Qc7 {[%clk 0:00:25]} 26. g5 {[%clk 0:00:34.8]} 26... Qxf4 {[%clk
0:00:22.4]} 27. gxf6+ {[%clk 0:00:32.6]} 27... Qxf6 {[%clk 0:00:23.3]} 28. Ne5
{[%clk 0:00:26.6]} 28... Rc7 {[%clk 0:00:21.3]} 29. Qd2 {[%clk 0:00:24.6]} 29...
Nf5 {[%clk 0:00:20.9]} 30. Rf1 {[%clk 0:00:22.9]} 30... Rb8 {[%clk 0:00:18.1]}
31. Ng4 {[%clk 0:00:22.4]} 31... Qf7 {[%clk 0:00:13.6]} 32. Nh6 {[%clk
0:00:21.7]} 32... Qe7 {[%clk 0:00:13]} 33. Nxf5+ {[%clk 0:00:17.8]} 33... exf5
{[%clk 0:00:13.9]} 34. Qh6+ {[%clk 0:00:17.5]} 34... Kg8 {[%clk 0:00:13.8]} 35.
Re3 {[%clk 0:00:16.1]} 35... Qg7 {[%clk 0:00:13.7]} 36. Qf4 {[%clk 0:00:16.2]}
36... Rbc8 {[%clk 0:00:13.9]} 37. Rfe1 {[%clk 0:00:16.1]} 37... Qf7 {[%clk
0:00:13]} 38. Re6 {[%clk 0:00:15]} 38... Rxc3 {[%clk 0:00:12]} 39. Qe5 {[%clk
0:00:14.8]} 39... Rc1 {[%clk 0:00:11]} 40. Re8+ {[%clk 0:00:11.2]} 40... Rxe8
{[%clk 0:00:10.7]} 0-1